bitfinex/quotes_SOLUSD_20240718
["timestamp","ask_amount","ask_price","bid_price","bid_amount"]
[1721275195159,12.13,159.18,159.16,21.9902]
[1721275196179,12.13,159.17,159.12,16.3983]
[1721275196345,12.13,159.15,159.12,15.7106]
[1721275196677,12.13,159.16,159.12,15.7106]
[1721275197245,12.13,159.15,159.12,15.7106]
[1721275197574,12.13,159.15,159.13,1.256578]
[1721275197870,12.13,159.16,159.12,15.7106]
[1721275198079,12.13,159.16,159.14,6.2837]
[1721275198373,12.13,159.16,159.15,1.25654176]
[1721275198550,12.13,159.16,159.14,6.2837]
[1721275198951,12.13,159.17,159.14,6.2837]
[1721275199178,12.13,159.17,159.15,1.25650274]
[1721275199473,12.13,159.18,159.15,6.2832]
[1721275199769,12.13,159.18,159.15,7.53970323]
[1721275199975,6.281,159.22,159.16,6.2828]
[1721275200153,12.13,159.19,159.17,1.25617719]
[1721275200358,6.281,159.22,159.17,7.53847719]
[1721275200554,12.13,159.2,159.18,6.2821]
[1721275200761,12.13,159.21,159.18,6.2821]
[1721275200981,1.57024354,159.24,159.18,6.2821]
[1721275201170,27.4874,159.25,159.19,7.53789483]
[1721275201378,7.84986665,159.24,159.18,6.2821]
[1721275201547,7.85050632,159.23,159.17,15.7055]
[1721275201751,6.2784,159.28,159.23,6.2799]
[1721275201984,6.2784,159.28,159.24,1.25571443]
[1721275201985,12.13,159.26,159.24,1.25571443]
[1721275202553,12.13,159.25,159.24,1.25571443]
[1721275202784,23.34864977,159.31,159.24,1.25571443]
[1721275202785,6.2774,159.3,159.24,1.25571443]
[1721275202960,12.13,159.27,159.24,1.25571443]
[1721275203160,12.13,159.25,159.24,1.25571443]
[1721275203668,1.56958588,159.29,159.24,1.25571443]
[1721275203872,1.56954528,159.3,159.24,1.25571443]
[1721275204179,6.2782,159.28,159.24,1.25571443]
[1721275204559,1.56954643,159.29,159.24,1.25571443]
[1721275204560,6.2779,159.29,159.24,1.25571443]
[1721275204764,6.2779,159.29,159.24,7.53531443]
[1721275205465,16.459,159.31,159.25,1.25553355]
[1721275205669,16.459,159.31,159.24,6.2796]
[1721275206668,12.13,159.28,159.25,6.2794]
[1721275206884,12.13,159.3,159.27,6.2786]
[1721275207394,12.13,159.3,159.26,15.6975]
[1721275207853,12.13,159.29,159.26,15.6975]
[1721275208052,1.56946853,159.34,159.26,15.6975]
[1721275208053,6.2765,159.33,159.27,7.53397775]
[1721275208262,12.13,159.31,159.27,7.53397775]
[1721275212161,12.13,159.31,159.27,6.2785]
[1721275212473,12.13,159.31,159.28,1.25537208]
[1721275213161,12.13,159.31,159.27,6.2785]
[1721275214287,12.13,159.31,159.28,1.2553731]
[1721275214789,6.2767,159.32,159.27,6.2785]
[1721275214986,12.13,159.31,159.27,6.2785]
[1721275215665,18.4067,159.32,159.27,19.66387266]
[1721275215994,1.56917066,159.35,159.31,12.13]
[1721275216177,6.2758,159.34,159.3,1.25517449]
[1721275216482,18.4063,159.33,159.29,15.6943]
[1721275216667,12.13,159.32,159.29,15.6943]
[1721275218564,12.13,159.33,159.29,21.972]
[1721275219186,12.13,159.32,159.29,21.972]
[1721275220671,12.13,159.32,159.29,15.6943]
[1721275222077,12.13,159.31,159.29,21.9721]
[1721275222266,13.69917158,159.3,159.24,6.2797]
[1721275222472,13.69917158,159.3,159.17,22.13]
[1721275222473,12.13,159.25,159.2,12.13]
[1721275222704,12.13,159.26,159.23,6.2801]
[1721275222995,6.2779,159.29,159.24,1.2557377]
[1721275222996,12.13,159.27,159.24,1.2557377]
[1721275223194,12.13,159.27,159.24,7.5353377]
[1721275224494,12.13,159.28,159.24,7.5353377]
[1721275224693,12.13,159.28,159.25,6.2794]
[1721275226097,12.13,159.27,159.24,6.2798]
[1721275226402,12.13,159.27,159.23,6.2801]
[1721275226869,12.13,159.27,159.24,6.2796]
[1721275227303,6.2779,159.29,159.24,6.2796]
[1721275227507,12.13,159.27,159.24,6.2796]
[1721275227681,12.13,159.28,159.24,6.2796]
[1721275229903,12.13,159.27,159.24,6.2796]
[1721275231603,12.13,159.26,159.22,21.9808]
[1721275233489,12.13,159.26,159.23,6.2801]
[1721275234208,6.2784,159.28,159.23,6.2801]
[1721275234422,12.13,159.26,159.23,6.2801]
[1721275239805,12.13,159.26,159.24,6.2797]
[1721275240192,12.13,159.26,159.23,6.2801]
[1721275240392,12.13,159.25,159.23,6.2801]
[1721275240586,12.13,159.24,159.22,15.7005]
[1721275241000,1.56974621,159.27,159.19,31.5866]
[1721275241193,12.13,159.22,159.19,31.5866]
[1721275241510,12.13,159.22,159.19,15.7045]
[1721275241809,12.13,159.22,159.19,21.9859]
[1721275242012,12.13,159.22,159.2,6.2813]
[1721275242507,12.13,159.22,159.19,15.7045]
[1721275243209,12.13,159.22,159.19,21.9859]
[1721275243588,12.13,159.22,159.19,15.7045]
[1721275243802,12.13,159.22,159.2,6.2813]
[1721275244709,12.13,159.23,159.21,6.281]
[1721275245121,12.13,159.24,159.22,6.2806]
[1721275245288,7.84871416,159.27,159.23,0.94114185]
[1721275245601,18.01127433,159.3,159.25,6.2794]
[1721275245904,12.13,159.27,159.26,1.25566531]
[1721275246108,12.13,159.27,159.25,6.2794]
[1721275246706,12.13,159.27,159.23,7.53551006]
[1721275246911,7.84753757,159.29,159.24,1.25570971]
[1721275247090,6.2779,159.29,159.24,1.25570971]
[1721275247713,6.2782,159.28,159.24,1.25570971]
[1721275247909,6.2782,159.28,159.23,6.2798]
[1721275248295,6.2779,159.29,159.24,1.25570806]
[1721275248513,12.13,159.27,159.24,7.53540806]
[1721275248814,12.13,159.28,159.24,7.53540806]
[1721275249217,12.13,159.27,159.24,7.53540806]
[1721275250613,12.13,159.28,159.24,7.53540806]
[1721275250800,12.13,159.27,159.24,7.53540806]
[1721275251202,12.13,159.31,159.24,16.95420806]
[1721275251412,6.2766,159.32,159.27,6.2783]
[1721275251590,17.34768276,159.34,159.28,13.38529198]
[1721275251591,12.13,159.33,159.28,13.38529198]
[1721275251798,12.13,159.34,159.29,18.4075]
[1721275252120,12.13,159.34,159.3,1.2552137]
[1721275252701,18.406,159.34,159.3,1.2552137]
[1721275253501,1.56903904,159.37,159.28,15.6948]
[1721275253502,12.13,159.36,159.28,15.6948]
[1721275253799,1.5691995,159.35,159.29,1.2553596]
[1721275254002,12.13,159.32,159.28,15.6948]
[1721275254202,12.13,159.31,159.28,15.6948]
[1721275256627,7.84637478,159.31,159.26,6.279]
[1721275256960,12.13,159.29,159.26,6.279]
[1721275257114,12.13,159.28,159.26,6.279]
[1721275258426,7.84637478,159.31,159.26,6.279]
[1721275258626,12.13,159.29,159.26,6.279]
[1721275259836,12.13,159.28,159.26,6.279]
[1721275260338,12.13,159.28,159.25,15.6984]
[1721275261156,12.13,159.28,159.26,6.2786]
[1721275262035,7.84700488,159.3,159.25,15.6984]
[1721275262242,12.13,159.28,159.25,15.6984]
[1721275263158,12.13,159.26,159.25,15.6984]
[1721275263656,6.2771,159.31,159.26,6.2787]
[1721275263827,12.13,159.28,159.26,7.5343488]
[1721275264029,12.13,159.28,159.26,6.2787]
[1721275264629,1.569561,159.3,159.26,6.2787]
[1721275264849,6.2785,159.28,159.21,15.7015]
[1721275265035,12.13,159.23,159.21,21.9824]
[1721275265862,12.13,159.22,159.17,15.7058]
[1721275266071,12.13,159.21,159.19,6.2816]
[1721275266358,6.2794,159.25,159.2,6.2812]
[1721275266359,12.13,159.22,159.2,6.2812]
[1721275266950,12.13,159.22,159.19,6.2817]
[1721275268863,12.13,159.21,159.18,7.22403004]
[1721275270047,12.13,159.21,159.18,6.2821]
[1721275271351,12.13,159.21,159.19,1.25619193]
[1721275271940,6.2803,159.23,159.18,6.2821]
[1721275272444,12.13,159.2,159.18,6.2821]
[1721275273264,12.13,159.21,159.18,6.2821]
[1721275273950,12.13,159.2,159.18,6.2821]
[1721275274449,12.13,159.21,159.18,6.2821]
[1721275274767,12.13,159.2,159.18,6.2821]
[1721275276764,12.13,159.2,159.17,15.7058]
[1721275277060,12.13,159.18,159.14,15.7093]
[1721275277252,1.57058182,159.17,159.1,22.2908]
[1721275277459,12.13,159.15,159.12,6.2845]
[1721275277765,12.13,159.16,159.13,1.25666495]
[1721275277965,18.4126,159.17,159.12,6.2845]
[1721275278265,12.13,159.15,159.11,6.2849]
[1721275278458,12.13,159.12,159.1,15.7127]
[1721275278766,12.13,159.11,159.1,21.998]
[1721275279942,15.0651,159.16,159.11,6.2848]
[1721275280153,12.13,159.14,159.11,1.25677432]
[1721275280354,12.13,159.14,159.1,15.7127]
[1721275280949,12.13,159.14,159.12,6.2845]
[1721275281348,12.13,159.13,159.12,6.2845]
[1721275282150,12.13,159.14,159.12,6.2845]
[1721275282350,7.85299683,159.19,159.13,15.7101]
[1721275282559,12.13,159.16,159.13,15.7101]
[1721275282758,12.13,159.16,159.13,23.2506262]
[1721275284666,12.13,159.16,159.13,16.9667262]
[1721275285364,12.13,159.15,159.13,1.2566262]
[1721275285758,12.13,159.15,159.11,1.25660976]
[1721275285958,12.13,159.14,159.11,1.25660976]
[1721275286147,6.283,159.16,159.11,1.25660976]
[1721275286352,12.13,159.12,159.07,30.7922]
[1721275286653,12.13,159.11,159.07,37.0785]
[1721275288672,12.13,159.11,159.07,22.0025]
[1721275289668,12.13,159.11,159.08,6.2859]
[1721275292472,12.13,159.12,159.08,6.2859]
[1721275292642,12.13,159.12,159.09,6.2855]
[1721275292848,12.5967,159.16,159.1,1.25691373]
[1721275293046,12.5967,159.16,159.09,21.9988]
[1721275293047,12.13,159.13,159.09,21.9988]
[1721275293264,6.284,159.14,159.09,21.9988]
[1721275293461,1.57113872,159.13,159.09,21.9988]
[1721275293670,6.285,159.11,159.06,6.2868]
[1721275295254,7.85563872,159.13,159.07,6.2864]
[1721275295473,6.2845,159.12,159.07,6.2864]
[1721275297958,7.85613872,159.11,159.05,22.0044]
[1721275298257,6.285,159.11,159.05,22.0044]
[1721275298662,6.285,159.11,159.06,6.2867]
[1721275299370,1.57113872,159.1,159.06,6.2867]
[1721275299547,1.57113872,159.1,159.05,22.0048]
[1721275299751,1.57113872,159.1,159.05,15.7175]
[1721275299967,6.2858,159.09,159.05,15.7175]
[1721275300479,12.16,159.06,159.05,15.7175]
[1721275300850,7.85643872,159.11,159.05,15.7175]
[1721275301075,12.16,159.08,159.05,15.7175]
[1721275301376,1.57113872,159.11,159.07,6.2865]
[1721275301675,12.16,159.09,159.07,6.2865]
[1721275302254,12.16,159.09,159.06,6.2868]
[1721275303274,12.16,159.07,159.05,15.7175]
[1721275303458,12.16,159.06,159.05,22.0047]
[1721275303777,12.16,159.07,159.05,22.0047]
[1721275304373,12.16,159.08,159.05,22.0047]
[1721275304762,12.16,159.08,159.06,6.2868]
[1721275304966,12.16,159.09,159.06,6.2868]
[1721275309273,12.16,159.09,159.05,15.7175]
[1721275309274,12.16,159.08,159.05,15.7175]
[1721275309674,13.73113872,159.08,159.05,15.7175]
[1721275309876,1.57113872,159.08,159.05,15.7175]
[1721275310180,12.16,159.07,159.05,15.7175]
[1721275310758,12.16,159.08,159.05,15.7175]
[1721275311563,6.2862,159.08,159.03,6.2879]
[1721275311766,12.16,159.07,159.04,6.2876]
[1721275312082,12.16,159.08,159.04,6.2876]
[1721275312482,12.16,159.08,159.05,6.287]
[1721275314181,13.73113872,159.09,159.05,6.287]
[1721275314489,1.57113872,159.09,159.04,6.2876]
[1721275314682,12.16,159.06,159.03,15.7195]
[1721275314883,12.16,159.05,159.03,15.7195]
[1721275315475,12.16,159.05,159.03,22.0075]
[1721275315977,12.16,159.04,159.03,15.7195]
[1721275317785,12.16,159.04,159.03,22.0076]
[1721275319680,12.16,159.04,159.03,15.7195]
[1721275320995,12.16,159.04,159.03,22.0076]
[1721275322570,12.16,159.04,159.03,21.5076]
[1721275322891,1.57113872,159.07,159.03,21.5076]
[1721275322892,1.57113872,159.07,159.03,15.2195]
[1721275323092,16.326,159.09,159.03,15.2195]
[1721275323093,1.57113872,159.08,159.03,15.2195]
[1721275323597,1.57113872,159.07,159.03,21.5075]
[1721275324517,1.57113872,159.07,159.04,6.2877]
[1721275324802,7.85643872,159.11,159.05,16.97488561]
[1721275324986,13.73113872,159.1,159.07,6.2865]
[1721275325182,1.57113872,159.12,159.09,6.2853]
[1721275325393,1.57113872,159.11,159.07,22.002]
[1721275325575,12.16,159.09,159.07,22.002]
[1721275327506,12.16,159.09,159.04,12.16]
[1721275327507,20.01753872,159.08,159.03,22.0073]
[1721275327680,12.16,159.05,159.03,22.0073]
[1721275329538,23.77613872,159.06,159.0,22.0121]
[1721275329808,12.16,159.03,159.0,22.0121]
[1721275329984,12.16,159.02,159.0,22.0121]
[1721275333304,1.57113872,159.04,159.0,22.0121]
[1721275333305,12.16,159.03,159.0,22.0121]
[1721275333687,12.16,159.01,158.97,15.7261]
[1721275333883,12.16,158.99,158.97,15.7261]
[1721275335013,12.16,158.99,158.97,22.0162]
[1721275335510,12.16,158.99,158.98,6.29]
[1721275335722,1.57113872,159.03,158.97,27.8861]
[1721275336409,1.57113872,159.03,158.97,15.7261]
[1721275337117,1.57113872,159.03,159.0,6.2891]
[1721275337312,1.57113872,159.05,159.0,6.2891]
[1721275337622,1.57113872,159.04,159.0,6.2891]
[1721275338501,1.57113872,159.05,159.0,6.2891]
[1721275338713,1.57113872,159.04,159.0,6.2891]
[1721275339220,1.57113872,159.04,158.99,7.54728205]
[1721275339547,1.57113872,159.04,158.97,22.0162]
[1721275339826,7.85933872,159.03,158.97,22.0162]
[1721275340025,6.2882,159.03,158.97,22.0162]
[1721275340195,7.85973872,159.02,158.97,22.0162]
[1721275340398,6.2886,159.02,158.97,22.0162]
[1721275344126,12.16,158.98,158.94,16.5555516]
[1721275344302,7.86013872,159.01,158.94,16.5555516]
[1721275344303,12.16,158.97,158.94,16.5555516]
[1721275344723,12.16,158.97,158.95,6.2912]
[1721275344919,12.16,158.98,158.95,6.2912]
[1721275345224,12.16,158.98,158.94,22.8471516]
[1721275346411,12.16,158.96,158.94,0.8264516]
[1721275347723,13.73113872,158.96,158.94,0.8264516]
[1721275348626,12.16,158.96,158.94,0.8264516]
[1721275351007,12.16,158.95,158.94,0.8264516]
[1721275351619,12.16,158.96,158.94,0.8264516]
[1721275353203,12.16,158.96,158.94,8.37635784]
[1721275353525,12.16,158.97,158.94,8.37635784]
[1721275354026,12.16,158.97,158.94,7.1180516]
[1721275355032,12.16,158.97,158.94,0.8264516]
[1721275355630,12.16,158.97,158.94,2.08463879]
[1721275355920,13.73113872,158.97,158.94,2.08463879]
[1721275356315,12.16,158.97,158.94,2.08463879]
[1721275356701,12.16,158.98,158.94,8.37623879]
[1721275357007,18.4497,158.99,158.94,8.37623879]
[1721275357209,12.16,158.98,158.94,8.37623879]
[1721275358926,18.4497,158.99,158.94,8.37623879]
[1721275359105,21.5169,159.01,158.94,29.97283879]
[1721275359436,12.16,159.0,158.95,12.16]
[1721275359615,12.16,159.0,158.96,1.25791102]
[1721275360005,18.4492,159.01,158.96,19.70871102]
[1721275360213,6.2893,159.0,158.96,13.41791102]
[1721275362828,6.2893,159.0,158.95,6.2912]
[1721275363026,6.2893,159.0,158.95,18.4512]
[1721275364323,6.2893,159.0,158.96,1.25790278]
[1721275365019,6.2893,159.0,158.96,13.41790278]
[1721275365404,6.2887,159.02,158.97,6.2904]
[1721275365620,6.2887,159.02,158.98,13.41778032]
[1721275365939,6.2887,159.02,158.99,1.25778098]
[1721275367232,6.2887,159.02,158.97,18.4504]
[1721275367625,6.2887,159.02,158.97,6.2904]
[1721275367834,6.2889,159.01,158.96,18.4508]
[1721275368735,6.2889,159.01,158.97,13.41779648]
[1721275369110,6.2885,159.02,158.97,19.70819648]
[1721275369724,6.2885,159.02,158.98,1.25778756]
[1721275370017,6.2885,159.02,158.99,1.25778778]
[1721275371040,6.2885,159.02,158.98,1.25778831]
[1721275371231,6.2885,159.02,158.99,1.25778859]
[1721275371538,6.2885,159.02,158.97,18.4504]
[1721275373532,6.2885,159.02,158.98,1.25779116]
[1721275374256,6.2885,159.02,158.99,1.2577916]
[1721275375656,6.2885,159.02,158.98,13.41778374]
[1721275376557,6.2885,159.02,158.97,18.4504]
[1721275376920,6.2885,159.02,158.97,6.2904]
[1721275378451,1.57113872,159.01,158.94,16.5546516]
[1721275378633,13.73113872,159.01,158.95,12.16]
[1721275378838,12.16,158.99,158.94,28.7146516]
[1721275380068,18.4493,159.0,158.95,18.451]
[1721275380357,12.16,159.0,158.96,6.2908]
[1721275380944,12.16,159.0,158.97,6.2904]
[1721275381651,13.73113872,159.0,158.96,6.2908]
[1721275382036,20.02043872,159.0,158.96,6.2908]
[1721275382439,20.02043872,159.0,158.95,18.4512]
[1721275384343,1.57113872,159.03,158.97,12.16]
[1721275384577,1.57113872,159.03,158.98,13.41780848]
[1721275384756,13.73113872,159.03,158.99,1.2578086]
[1721275384958,13.73113872,159.03,158.98,12.16]
[1721275385258,12.16,159.02,158.97,12.16]
[1721275385468,12.16,159.02,158.98,6.2897]
[1721275385664,13.73113872,159.02,158.98,6.2897]
[1721275386045,1.57113872,159.01,158.98,6.2897]
[1721275386550,1.57113872,159.04,158.99,16.66899921]
[1721275386756,1.57113872,159.04,158.99,35.11839921]
[1721275386964,1.57113872,159.04,159.0,6.2892]
[1721275387343,1.57113872,159.04,159.0,7.2341266]
[1721275387961,1.57113872,159.04,159.0,19.3941266]
[1721275388167,7.85883872,159.04,159.0,0.9449266]
[1721275388459,7.85883872,159.04,158.99,22.0137]
[1721275388460,12.16,159.03,158.99,22.0137]
[1721275388659,1.57113872,159.02,158.99,15.7241]
[1721275388866,1.57113872,159.02,158.98,6.29]
[1721275390467,1.57113872,159.01,158.96,22.0174]
[1721275390964,1.57113872,159.01,158.96,15.7269]
[1721275391546,1.57113872,159.0,158.96,15.7269]
[1721275391845,1.57113872,159.03,158.96,15.7269]
[1721275392072,6.2893,159.0,158.96,15.7269]
[1721275392343,12.16,158.98,158.94,0.8264516]
[1721275392675,7.86193872,158.97,158.94,0.8264516]
[1721275392966,12.16,158.96,158.94,0.8264516]
[1721275393442,1.57113872,158.95,158.94,0.8264516]
[1721275393940,13.73113872,158.95,158.94,0.8264516]
[1721275394545,12.16,158.95,158.94,0.8264516]
[1721275401279,13.73113872,158.96,158.94,0.8264516]
[1721275401577,12.16,158.96,158.94,0.8264516]
[1721275401788,13.73113872,158.97,158.94,0.8264516]
[1721275401950,13.73113872,158.97,158.94,7.1179516]
[1721275402156,12.16,158.97,158.94,7.1179516]
[1721275402372,12.16,158.97,158.94,0.8264516]
[1721275404171,12.16,158.96,158.94,0.8264516]
[1721275408479,12.16,158.97,158.94,0.8264516]
[1721275409269,20.02123872,158.98,158.94,0.8264516]
[1721275409680,13.73113872,158.98,158.94,0.8264516]
[1721275409890,12.16,158.98,158.94,0.8264516]
[1721275410574,21.9416,158.99,158.95,7.54933168]
[1721275410575,12.16,158.99,158.95,7.54933168]
[1721275410771,12.16,159.0,158.96,7.54881933]
[1721275410971,12.16,159.01,158.96,19.70881933]
[1721275412487,6.2873,159.05,159.0,6.2892]
[1721275412691,23.96583872,159.07,159.01,13.41764279]
[1721275412989,1.57113872,159.1,159.02,1.25747017]
[1721275413188,12.16,159.09,159.04,12.16]
[1721275413388,12.16,159.09,159.05,1.25728632]
[1721275413705,18.4457,159.09,159.05,1.25728632]
[1721275415282,20.01723872,159.08,159.03,34.1683]
[1721275415490,7.85673872,159.1,159.04,1.25732064]
[1721275415670,12.16,159.09,159.04,12.16]
[1721275415858,13.73113872,159.08,159.03,34.1682]
[1721275416059,20.01733872,159.08,159.03,22.0082]
[1721275416261,20.01733872,159.08,159.03,15.7202]
[1721275416262,18.4462,159.08,159.03,15.7202]
[1721275416481,12.16,159.07,159.03,15.7202]
[1721275417072,12.16,159.07,159.03,22.0083]
[1721275417877,6.2862,159.08,159.03,22.0083]
[1721275418084,12.16,159.08,159.04,6.2877]
[1721275418291,13.73113872,159.08,159.04,6.2877]
[1721275418667,20.01763872,159.07,159.01,6.2888]
[1721275418861,18.4471,159.06,159.0,12.16]
[1721275419088,12.16,159.04,158.99,34.1726]
[1721275419603,13.73113872,159.04,158.99,34.1726]
[1721275419768,13.73113872,159.04,159.0,6.2892]
[1721275420396,12.16,159.04,159.0,6.2892]
[1721275420691,1.57113872,159.03,158.99,22.0129]
[1721275421293,12.16,159.05,159.0,12.16]
[1721275421465,13.73113872,159.06,159.02,15.7212]
[1721275421671,12.16,159.06,159.03,6.288]
[1721275421987,18.4465,159.07,159.02,22.0095]
[1721275422194,1.57113872,159.06,159.02,34.1695]
[1721275422491,12.16,159.07,159.03,7.5455192]
[1721275422992,12.16,159.08,159.03,7.5455192]
[1721275423203,12.16,159.08,159.04,6.2876]
[1721275423559,13.73113872,159.08,159.04,6.2876]
[1721275423792,12.16,159.06,159.02,22.0094]
[1721275424087,13.73113872,159.07,159.02,34.1694]
[1721275424389,12.16,159.08,159.04,6.2873]
[1721275426707,12.16,159.07,159.03,6.288]
[1721275428290,12.16,159.07,159.04,6.2877]
[1721275428496,12.16,159.08,159.04,7.54505714]
[1721275429096,1.57113872,159.09,159.05,27.8782]
[1721275429264,7.85643872,159.1,159.05,27.8782]
[1721275429468,28.0269,159.11,159.06,1.2572644]
[1721275429668,1.57113872,159.1,159.06,1.2572644]
[1721275429892,7.85673872,159.1,159.05,27.8782]
[1721275430512,7.85673872,159.1,159.05,29.13497668]
[1721275430796,15.4449,159.11,159.05,27.8782]
[1721275431179,15.4449,159.11,159.06,12.16]
[1721275432088,21.7299,159.11,159.06,18.4467]
[1721275433102,6.285,159.11,159.07,1.25709917]
[1721275433406,6.2846,159.12,159.08,13.41709851]
[1721275434299,6.2842,159.13,159.08,19.70309851]
[1721275434495,18.4442,159.13,159.09,1.25700462]
[1721275435184,1.57113872,159.14,159.09,7.54270462]
[1721275435590,27.3318,159.15,159.1,18.4453]
[1721275435794,7.85486603,159.14,159.1,12.16]
[1721275436002,7.85486603,159.14,159.09,12.16]
[1721275436003,20.01486603,159.14,159.09,12.16]
[1721275437315,18.4442,159.13,159.08,18.4457]
[1721275437510,12.16,159.12,159.08,6.2857]
[1721275437894,12.16,159.12,159.07,27.8754]
[1721275437895,1.57113872,159.12,159.07,15.7154]
[1721275438814,1.57113872,159.12,159.04,27.8792]
[1721275438990,1.57113872,159.11,159.04,27.8792]
[1721275439313,7.85653872,159.1,159.04,22.0068]
[1721275439612,1.57113872,159.09,159.04,15.7192]
[1721275440111,7.85693872,159.09,159.04,15.7192]
[1721275440407,7.85643872,159.11,159.05,6.287]
[1721275440712,1.57113872,159.1,159.05,6.287]
[1721275443604,12.16,159.06,159.04,15.7192]
[1721275444923,13.73113872,159.05,159.02,6.2885]
[1721275445111,12.16,159.05,159.02,6.2885]
[1721275445792,1.57113872,159.07,159.03,15.7202]
[1721275445997,12.16,159.07,159.03,15.7202]
[1721275446231,15.3513,159.09,159.03,15.7202]
[1721275446232,27.5113,159.09,159.06,6.2869]
[1721275446397,12.16,159.09,159.06,6.2869]
[1721275446596,12.16,159.09,159.04,18.4473]
[1721275446805,1.57113872,159.08,159.04,6.2873]
[1721275447095,6.2853,159.1,159.04,1.25733127]
[1721275447306,7.85693872,159.09,159.03,34.168]
[1721275447692,7.85693872,159.09,159.04,6.2875]
[1721275447693,1.57113872,159.09,159.04,6.2875]
[1721275448094,7.85683872,159.09,159.04,6.2875]
[1721275448319,1.57113872,159.08,159.04,6.2875]
[1721275450024,1.57113872,159.08,159.03,22.0082]
[1721275450319,1.57113872,159.07,159.03,22.0082]
[1721275450521,1.57113872,159.07,159.01,6.2886]
[1721275450522,7.85803872,159.07,159.01,6.2886]
[1721275450820,1.57113872,159.06,159.01,6.2886]
[1721275452425,1.57113872,159.06,159.02,6.2885]
[1721275454218,1.57113872,159.07,159.02,6.2885]
[1721275454423,12.16,159.03,158.99,15.7233]
[1721275454639,12.16,159.03,159.01,6.2889]
[1721275454827,12.16,159.04,159.01,6.2889]
[1721275455325,12.16,159.05,159.02,7.54602955]
[1721275455523,12.16,159.06,159.02,1.25762955]
[1721275456104,12.16,159.06,159.02,7.54602955]
[1721275456401,12.16,159.05,159.02,7.54602955]
[1721275456726,12.16,159.05,159.01,22.0101]
[1721275456904,6.2902,158.98,158.94,0.8264516]
[1721275457110,12.16,158.97,158.94,0.8264516]
[1721275460322,1.57113872,158.98,158.94,0.8264516]
[1721275460710,1.57113872,158.98,158.94,7.1180516]
[1721275461717,1.57113872,158.99,158.94,7.1180516]
[1721275461929,1.57113872,158.98,158.94,7.1180516]
[1721275462235,1.57113872,158.99,158.94,7.1180516]
[1721275462534,1.57113872,158.98,158.94,6.6180516]
[1721275463537,1.57113872,158.99,158.94,6.6180516]
[1721275463741,1.57113872,158.98,158.94,6.6180516]
[1721275463915,6.2893,159.0,158.94,6.6180516]
[1721275464235,6.2893,159.0,158.95,6.2912]
[1721275464743,1.57113872,158.99,158.95,6.2912]
[1721275464931,7.86083872,158.99,158.94,0.3264516]
[1721275465132,1.57113872,158.98,158.94,0.3264516]
[1721275465737,1.57113872,158.98,158.94,6.6179516]
[1721275467226,6.2912,158.95,158.94,0.3264516]
[1721275467435,1.57113872,158.98,158.94,0.3264516]
[1721275467630,46.57113872,158.98,158.94,0.3264516]
[1721275468437,6.2909,158.96,158.94,0.3264516]
[1721275468640,1.57113872,158.95,158.94,0.3264516]
[1721275469146,6.2909,158.96,158.94,0.3264516]
[1721275470144,1.57113872,158.95,158.94,0.3264516]
[1721275471151,6.2905,158.97,158.94,0.3264516]
[1721275471332,1.57113872,158.96,158.94,0.3264516]
[1721275473827,7.86163872,158.97,158.94,0.3264516]
[1721275474036,1.57113872,158.97,158.94,0.3264516]
[1721275475844,7.86183872,158.97,158.94,0.3264516]
[1721275476041,1.57113872,158.97,158.94,0.3264516]
[1721275476239,1.57113872,158.98,158.94,0.3264516]
[1721275478140,6.2909,158.96,158.94,0.3264516]
[1721275478341,1.57113872,158.95,158.94,0.3264516]